bitfinex-derivatives/quotes_ETHF0:USTF0_20250902
["timestamp","ask_amount","ask_price","bid_price","bid_amount"]
[1756788699705,0.92834904,4381.3,4381.2,3.4388]
[1756788700112,0.92834904,4381.3,4381.2,0.6977]
[1756788700408,0.63124904,4381.3,4381.2,0.6977]
[1756788700601,0.23289189,4381.3,4381.2,0.6977]
[1756788700998,0.23289189,4381.3,4381.2,0.9287]
[1756788702609,0.93189189,4381.3,4381.2,0.1674]
[1756788703100,0.93189189,4381.3,4381.2,0.0837]
[1756788704707,0.93189189,4381.3,4381.1,0.231]
[1756788704907,0.93189189,4381.2,4381.1,0.231]
[1756788705502,1.62978179,4381.2,4380.6,44.0078]
[1756788705809,0.699,4380.8,4380.7,0.231]
[1756788706011,0.93189189,4380.8,4380.7,0.231]
[1756788706407,0.699,4380.7,4380.6,3.2078]
[1756788706604,0.93189189,4380.7,4380.6,3.2078]
[1756788707205,0.93189189,4380.7,4380.5,0.231]
[1756788707406,1.1039899,4380.9,4380.5,0.231]
[1756788707407,1.92178179,4380.6,4380.5,0.231]
[1756788708905,0.407,4380.3,4380.2,0.3147]
[1756788709217,0.93189189,4380.3,4380.2,0.3147]
[1756788709712,0.93189189,4380.3,4380.2,0.3984]
[1756788710104,0.292,4380.2,4380.1,3.2078]
[1756788710311,0.93189189,4380.2,4380.1,3.4388]
[1756788710608,0.93189189,4380.2,4380.1,3.5225]
[1756788710802,0.93189189,4380.2,4380.1,3.6062]
[1756788711199,0.93348381,4380.2,4380.1,3.6062]
[1756788711800,0.9334422,4380.2,4380.1,3.6062]
[1756788712004,0.93344364,4380.2,4380.1,3.6062]
[1756788715516,1.72868228,4380.2,4380.1,3.6062]
[1756788715908,1.72868228,4380.2,4380.1,0.3984]
[1756788718415,1.72868228,4380.2,4380.1,3.6062]
[1756788718619,1.72868228,4380.2,4380.1,0.3147]
[1756788720116,1.72868228,4380.2,4380.1,0.3984]
[1756788720320,0.23444364,4380.2,4380.1,4.45373864]
[1756788720617,0.23444364,4380.2,4380.1,4.68203864]
[1756788720820,0.23444364,4380.2,4380.1,8.68203864]
[1756788721020,0.4061,4380.9,4380.1,8.62973864]
[1756788721318,0.4061,4380.9,4380.8,3.4275]
[1756788721513,0.84495961,4380.9,4380.8,3.6062]
[1756788721913,0.34855961,4380.9,4380.8,3.6585]
[1756788722123,0.34853865,4380.9,4380.8,3.6585]
[1756788722720,0.34853865,4380.9,4380.8,44.4585]
[1756788728618,0.34877939,4380.9,4380.8,44.4585]
[1756788728819,0.23467939,4380.9,4380.8,44.4585]
[1756788730126,0.52667939,4380.9,4380.8,44.4585]
[1756788731627,0.52204833,4380.9,4380.8,44.4585]
[1756788731923,0.52204833,4380.9,4380.8,44.4062]
[1756788732126,0.52204548,4380.9,4380.8,44.4062]
[1756788733826,0.52204548,4380.9,4380.8,44.1752]
[1756788734024,0.52204548,4380.9,4380.8,44.4062]
[1756788736328,0.52204548,4380.9,4380.8,44.4588]
[1756788736524,0.23004548,4380.9,4380.8,44.4588]
[1756788736723,0.23004548,4380.9,4380.8,49.25403864]
[1756788736928,0.0615,4381.1,4381.0,0.1682]
[1756788737225,0.2885,4381.8,4381.1,0.41084]
[1756788737416,0.22989616,4381.7,4381.5,0.79523864]
[1756788737621,0.79523864,4382.3,4381.5,0.79523864]
[1756788737622,0.99393864,4382.3,4381.6,3.4388]
[1756788737822,0.2885,4382.1,4381.6,3.4388]
[1756788738016,0.2885,4381.9,4381.7,40.8]
[1756788738231,0.2885,4381.9,4381.8,0.231]
[1756788738428,0.51834286,4381.9,4381.8,1.02623864]
[1756788738622,0.22984286,4381.9,4381.8,1.02623864]
[1756788738930,0.2885,4382.3,4381.8,41.82623864]
[1756788739231,0.2885,4382.3,4382.2,0.79523864]
[1756788739429,0.51824857,4382.3,4382.2,1.02623864]
[1756788739929,0.51824857,4382.3,4382.2,41.82623864]
[1756788741221,0.51824857,4382.3,4382.2,45.03403864]
[1756788742125,0.51813899,4382.3,4382.2,45.03403864]
[1756788742532,0.51813899,4382.3,4382.2,45.21751632]
[1756788742735,0.51813899,4382.3,4382.2,45.03403864]
[1756788743533,0.2885,4382.3,4382.2,45.03403864]
[1756788744129,0.51810439,4382.3,4382.2,45.03403864]
[1756788744432,0.2885,4382.3,4382.2,45.03403864]
[1756788745035,0.2885,4382.3,4382.2,45.22084055]
[1756788747136,0.51813899,4382.3,4382.2,45.22084055]
[1756788747433,0.2885,4382.7,4382.2,46.01607919]
[1756788747640,0.3499,4382.9,4382.6,0.79523864]
[1756788747831,0.5486,4382.9,4382.8,3.2078]
[1756788748031,0.71677597,4382.9,4382.8,3.2078]
[1756788748338,0.92597597,4382.9,4382.8,3.2078]
[1756788748534,0.92597597,4382.9,4382.8,3.4388]
[1756788751943,0.71677597,4382.9,4382.8,3.4388]
[1756788752439,0.4872,4382.9,4382.8,3.4388]
[1756788752642,0.51806757,4382.9,4382.8,3.4388]
[1756788756740,0.22956757,4382.9,4382.8,3.4388]
[1756788757440,0.51806757,4382.9,4382.8,44.2388]
[1756788757740,0.2885,4382.9,4382.8,44.2388]
[1756788758045,0.2885,4383.8,4383.5,0.41062]
[1756788758236,0.3134,4384.5,4383.7,4.00303864]
[1756788758438,0.42807293,4384.4,4384.1,0.79523864]
[1756788758736,0.71657293,4384.3,4384.2,0.231]
[1756788758938,0.71657293,4384.3,4384.2,41.031]
[1756788759244,0.71657293,4384.3,4384.2,44.2388]
[1756788760039,0.51787293,4384.3,4384.2,44.2388]
[1756788760244,0.1147,4385.0,4384.2,44.2388]
[1756788760546,0.23327954,4384.9,4384.2,44.2388]
[1756788760739,0.23327954,4384.8,4384.2,44.2388]
[1756788761039,0.2885,4384.6,4384.4,0.79523864]
[1756788761243,0.2885,4384.6,4384.5,0.231]
[1756788761440,0.52170786,4384.6,4384.5,0.231]
[1756788761836,0.52170786,4384.6,4384.5,0.41350803]
[1756788762145,0.52170786,4384.6,4384.5,0.231]
[1756788763041,0.52170786,4384.6,4384.5,0.41147752]
[1756788763234,0.52170582,4384.6,4384.5,0.41147752]
[1756788763440,0.90993864,4385.5,4384.5,0.41147752]
[1756788763641,0.4996,4384.8,4384.7,4.00303864]
[1756788763840,0.2903,4384.8,4384.7,4.23403864]
[1756788764142,0.4996,4384.8,4384.7,4.23403864]
[1756788764442,0.2903,4384.8,4384.7,4.23403864]
[1756788765549,0.4996,4384.8,4384.7,4.23403864]
[1756788767348,0.2903,4384.8,4384.7,4.23403864]
[1756788770151,1.49723864,4384.8,4384.7,3.2078]
[1756788770446,1.73017609,4384.8,4384.7,3.4388]
[1756788770639,0.93493745,4384.8,4384.7,3.4388]
[1756788770844,0.73253745,4384.8,4384.7,3.4388]
[1756788771949,0.93493745,4384.8,4384.7,3.2078]
[1756788772148,0.93493745,4384.8,4384.2,40.8]
[1756788772149,1.73017609,4384.8,4384.2,40.8]
[1756788772451,0.702,4384.4,4384.3,0.231]
[1756788773855,0.2903,4384.3,4384.2,40.8]
[1756788774249,0.2903,4384.3,4384.2,41.031]
[1756788774654,0.2903,4384.3,4384.2,40.8]
[1756788774846,0.2903,4384.3,4384.2,41.031]
[1756788775752,0.2903,4384.3,4384.2,40.8]
[1756788775943,1.51238423,4384.3,4384.2,41.031]
[1756788776143,0.2903,4384.2,4383.8,0.18012133]
[1756788776355,1.69097123,4383.9,4383.8,0.231]
[1756788776557,1.92408423,4383.9,4383.8,0.231]
[1756788776856,2.15219423,4383.9,4383.8,0.231]
[1756788777150,1.92408423,4383.9,4383.8,0.231]
[1756788777550,1.92408423,4383.9,4383.6,40.8]
[1756788777752,0.935113,4383.8,4383.7,0.231]
[1756788780252,0.935113,4383.8,4383.7,0.6334]
[1756788780454,0.233113,4383.8,4383.7,0.813]
[1756788780759,0.4996,4384.3,4384.2,0.4024]
[1756788781054,0.73294989,4384.3,4384.2,44.6412]
[1756788781453,0.52364989,4384.3,4384.2,44.8207]
[1756788781660,0.23334989,4384.3,4384.2,44.8207]
[1756788782260,0.52364989,4384.3,4384.2,44.8207]
[1756788782557,0.52364989,4384.3,4384.2,44.6412]
[1756788783250,0.2903,4384.3,4384.2,44.8207]
[1756788783456,0.52381876,4384.3,4384.2,44.8207]
[1756788784455,0.52381876,4384.3,4384.2,44.6412]
[1756788786354,0.52381876,4384.3,4384.2,44.8207]
[1756788786555,0.52381876,4384.3,4384.2,44.6412]
[1756788787957,0.52381876,4384.3,4384.2,44.8207]
[1756788788260,0.23351876,4384.3,4384.2,44.8207]
[1756788793873,0.23126269,4384.3,4384.2,44.8207]
[1756788795262,0.2868,4385.0,4384.9,0.5797]
[1756788795467,0.51807827,4385.0,4384.9,4.0185]
[1756788796372,0.23127827,4385.0,4384.9,8.0185]
[1756788796573,0.1186,4386.5,4385.7,0.29]
[1756788796770,0.4072,4386.2,4386.1,3.6089]
[1756788796972,0.4072,4386.2,4386.1,44.6399]
[1756788798563,0.694,4386.2,4386.1,44.6399]
[1756788798766,0.694,4386.2,4386.1,44.9299]
[1756788801972,0.694,4386.2,4386.1,44.6399]
[1756788803076,0.694,4386.2,4386.1,44.9299]
[1756788805583,0.694,4386.2,4386.1,44.4089]
[1756788805887,0.694,4385.4,4385.1,3.2078]
[1756788806179,0.694,4385.3,4385.2,40.8]
[1756788806478,0.694,4385.3,4385.2,41.031]
[1756788806973,0.694,4385.3,4385.2,0.9221]
[1756788808173,0.694,4385.3,4385.2,0.6321]
[1756788808482,0.92292069,4385.3,4385.2,0.6321]
[1756788810983,0.51572069,4385.3,4385.2,0.9221]
[1756788811174,0.22892069,4385.3,4385.2,0.9221]
[1756788811374,0.51572069,4385.3,4385.2,0.9221]
[1756788811574,0.72452069,4385.3,4385.2,0.9221]
[1756788813787,0.51572069,4385.3,4385.2,0.9221]
[1756788814587,0.22892069,4385.3,4385.2,0.9221]
[1756788814789,0.22892069,4385.3,4385.2,1.91107123]
[1756788815078,0.22911395,4385.6,4385.2,1.62107123]
[1756788815286,0.22911395,4385.5,4385.4,0.6911]
[1756788815487,0.98897123,4386.3,4385.6,0.4011]
[1756788815680,0.2088,4385.9,4385.8,0.6911]
[1756788815879,0.43794371,4385.9,4385.8,0.6911]
[1756788816075,0.72474371,4385.9,4385.8,0.6911]
[1756788816380,0.22914371,4385.9,4385.8,1.68007123]
[1756788816578,0.22914371,4385.9,4385.8,0.6911]
[1756788817290,0.51594371,4385.9,4385.8,0.6911]
[1756788818588,0.92314371,4385.9,4385.8,0.2034]
[1756788818888,0.92314371,4385.9,4385.8,41.0034]
[1756788819283,0.92314371,4385.9,4385.8,41.2344]
[1756788820191,0.92314371,4385.9,4385.8,40.8]
[1756788820381,0.694,4385.2,4385.1,3.2078]
[1756788820583,0.92314371,4385.2,4385.1,3.2078]
[1756788820781,0.92314371,4385.2,4385.1,44.2388]
[1756788820979,0.72474371,4385.2,4385.1,44.5288]
[1756788822789,0.22914371,4385.2,4385.1,44.5288]
[1756788825492,0.1173,4386.0,4385.4,0.399]
[1756788825695,0.5031,4385.5,4385.4,0.6906]
[1756788825890,0.73138429,4385.5,4385.4,0.9216]
[1756788826392,0.73140787,4385.5,4385.4,0.9216]
[1756788828304,0.22830787,4385.5,4385.4,0.9216]
[1756788829796,0.73140787,4385.5,4385.4,0.6906]
[1756788829997,0.73140787,4385.5,4385.4,0.9216]
[1756788830498,0.93740787,4385.5,4385.4,0.399]
[1756788830699,0.93740787,4385.5,4385.4,0.63]
[1756788831099,0.22830787,4385.5,4385.4,0.9216]
[1756788831703,0.52200787,4385.5,4385.4,0.9216]
[1756788832305,0.73140787,4385.5,4385.4,0.9216]
[1756788833210,0.93740787,4385.5,4385.4,0.399]
[1756788833405,0.93740787,4385.5,4385.4,0.63]
[1756788834004,0.93740787,4385.5,4385.4,0.399]
[1756788834308,1.05350787,4385.5,4385.1,44.0078]
[1756788834510,0.8252,4385.5,4385.4,0.231]
[1756788834699,1.05367064,4385.5,4385.4,0.231]
[1756788836011,0.2937,4385.4,4385.1,44.0078]
[1756788836204,0.7091,4385.4,4385.3,0.99856528]
[1756788836401,0.93761387,4385.4,4385.3,1.19226528]
[1756788836605,0.93761387,4385.4,4385.3,1.48386528]
[1756788836805,0.93761387,4385.4,4385.3,0.6906]
[1756788837013,0.93761378,4385.4,4385.3,1.19226528]
[1756788838013,0.93761378,4385.4,4385.3,0.99856528]
[1756788838209,0.93761378,4385.4,4385.3,1.19226528]
[1756788838711,0.93761378,4385.4,4385.3,1.42326528]
[1756788838903,0.2937,4385.3,4385.1,44.0078]
[1756788839205,0.93761378,4385.2,4385.1,44.0078]
[1756788839409,0.93761378,4385.2,4385.1,44.2388]
[1756788839614,0.93761378,4385.2,4385.1,44.0078]
[1756788840001,0.93761378,4385.2,4385.1,44.2388]
[1756788840202,0.93761378,4385.2,4385.1,44.0078]
[1756788840411,0.93761378,4385.2,4385.1,44.2388]
[1756788842114,0.93765422,4385.2,4385.1,44.2388]
[1756788842303,0.93765422,4385.2,4385.1,41.031]
[1756788842506,0.7091,4384.4,4384.1,0.291]
[1756788842712,0.93765422,4384.4,4384.3,0.4363]
[1756788842907,0.93765422,4384.4,4384.3,41.031]
[1756788843113,0.73165422,4384.4,4384.3,41.322]
[1756788843310,0.52225422,4384.4,4384.3,41.322]
[1756788843515,0.22855422,4384.4,4384.3,41.322]
[1756788844012,0.52225422,4384.4,4384.3,40.8]
[1756788844212,0.52225422,4384.4,4384.3,41.031]
[1756788845516,0.52193916,4384.4,4384.3,41.031]
[1756788845712,0.52193916,4384.4,4384.3,40.8]
[1756788845917,0.52193916,4384.4,4384.3,41.031]
[1756788846313,0.93733916,4384.4,4384.3,0.231]
[1756788846616,1.73060444,4384.4,4384.3,0.231]
[1756788849420,1.73060444,4384.4,4384.3,0.4363]
[1756788849716,1.73060444,4384.4,4384.3,0.63]
[1756788850815,0.93733916,4384.4,4384.3,0.921]
[1756788852016,0.73133916,4384.4,4384.3,0.921]
[1756788853010,0.93983916,4384.4,4384.3,0.63]
[1756788853211,1.73310444,4384.4,4384.3,0.63]
[1756788853415,0.93983916,4384.4,4384.3,0.921]
[1756788853614,0.93983916,4384.4,4384.3,0.63]
[1756788856021,0.7116,4384.4,4384.3,0.63]
[1756788856223,0.91833644,4384.4,4384.3,0.63]
[1756788857322,0.91833644,4384.4,4384.3,0.921]
[1756788859924,0.70983644,4384.4,4384.3,0.921]
[1756788860221,0.50043644,4384.4,4384.3,1.71426528]
[1756788860421,0.69103644,4384.4,4384.3,1.71426528]
[1756788862023,0.89953644,4384.4,4384.3,1.42326528]
[1756788866024,0.20673644,4384.4,4384.3,1.71426528]
[1756788866219,3.2078,4385.3,4384.4,0.291]
[1756788866220,0.1906,4384.5,4384.4,0.291]
[1756788866421,1.01269497,4384.5,4384.4,0.4403]
[1756788866625,0.6885,4384.5,4384.4,0.4403]
[1756788866831,0.49650578,4384.5,4384.4,0.93]
[1756788867028,0.20710578,4384.5,4384.4,0.93]
[1756788867421,0.49650578,4384.5,4384.4,0.93]
[1756788867633,0.68710578,4384.5,4384.4,0.93]
[1756788868627,0.49650578,4384.5,4384.4,0.93]
[1756788869028,0.68710578,4384.5,4384.4,0.699]
[1756788869233,0.68710578,4384.5,4384.4,0.93]
[1756788870327,0.20710578,4384.5,4384.4,0.93]
[1756788870626,0.1161,4386.0,4385.3,0.3092]
[1756788870818,0.3991,4385.6,4385.5,3.4171]
[1756788871023,1.19236528,4385.6,4385.5,44.2171]
[1756788871735,0.3991,4385.6,4385.5,44.7573]
[1756788872029,0.3991,4385.6,4385.5,44.4481]
[1756788872527,0.6885,4385.6,4385.5,44.7573]
[1756788873130,0.6885,4385.6,4385.5,44.4481]
[1756788873727,0.6885,4385.6,4385.5,44.2171]
[1756788873932,0.6885,4385.6,4385.5,44.4481]
[1756788874235,0.6885,4385.6,4385.5,44.2171]
[1756788874428,0.6885,4385.6,4385.5,44.4481]
[1756788875535,1.48176528,4385.6,4385.5,40.8]
[1756788876334,1.48176528,4385.6,4385.5,41.3402]
[1756788876633,1.48176528,4385.6,4385.5,41.031]
[1756788878336,1.19236528,4385.6,4384.9,3.517]
[1756788878536,1.00176528,4385.2,4385.1,0.408]
[1756788878737,1.19236528,4385.2,4385.1,0.639]
[1756788879037,1.48176528,4385.2,4385.1,41.439]
[1756788879231,1.19236528,4385.2,4384.9,3.2078]
[1756788879435,0.3991,4385.0,4384.9,3.4171]
[1756788879730,0.6885,4385.0,4384.9,3.8468]
[1756788879937,0.6885,4385.0,4384.9,4.156]
[1756788881235,0.8094,4385.0,4384.7,40.8]
[1756788881532,1.10606528,4384.8,4384.7,40.8]
[1756788881731,1.10606528,4384.8,4384.7,41.031]
[1756788882534,1.29641107,4384.8,4384.7,41.031]
[1756788882730,1.29641107,4384.8,4384.7,40.8]
[1756788882926,1.29641107,4384.8,4384.7,41.031]
[1756788883832,1.69741107,4384.8,4384.7,0.231]
[1756788884032,1.69741107,4384.8,4384.7,0.4294]
[1756788884238,1.69742536,4384.8,4384.7,0.4294]
[1756788884734,1.69742536,4384.8,4384.3,3.2078]
[1756788884932,0.7138,4384.4,4384.3,3.9207]
[1756788885132,0.5129,4384.4,4384.3,4.1517]
[1756788885435,0.3128,4384.4,4384.3,4.1517]
[1756788886643,0.5129,4384.4,4384.3,4.1517]
[1756788887239,0.1209,4385.0,4384.4,0.3076]
[1756788887444,0.401,4385.0,4384.9,0.1984]
[1756788887743,1.31516528,4385.0,4384.7,0.231]
[1756788887944,1.50706528,4384.8,4384.7,0.231]
[1756788888239,1.6974684,4384.8,4384.7,0.231]
[1756788888543,1.69747978,4384.8,4384.7,0.231]
[1756788889030,1.69747978,4384.8,4384.3,3.2078]
[1756788889237,1.50706528,4384.4,4383.9,41.1076]
[1756788889544,1.50706528,4384.1,4384.0,0.4294]
[1756788890231,0.3128,4384.4,4384.0,1.42956528]
[1756788890538,0.9042425,4384.3,4384.2,0.7129]
[1756788890737,0.9042425,4384.3,4384.2,0.9439]
[1756788891641,0.9042425,4384.3,4384.2,0.7129]
[1756788891845,0.7033425,4384.3,4384.2,0.9439]
[1756788892240,0.9042425,4384.3,4384.2,0.9439]
[1756788897254,0.9042425,4384.3,4384.2,0.6363]
[1756788898457,0.90418977,4384.3,4384.2,0.6363]
[1756788898852,0.90418937,4384.3,4384.2,0.6363]
[1756788899054,0.3128,4384.2,4383.9,40.8]
[1756788899359,0.7138,4384.1,4384.0,0.4294]
[1756788900252,0.3128,4384.1,4384.0,0.9439]
[1756788900449,0.3128,4384.6,4384.0,0.6363]
[1756788900746,0.19037226,4384.5,4384.4,0.7129]
[1756788900948,0.50317226,4384.5,4384.4,0.9439]
[1756788901143,0.70327226,4384.5,4384.4,0.9439]
[1756788902554,0.19037226,4384.5,4384.4,0.9439]
[1756788902753,0.19037226,4384.5,4384.4,9.14085988]
[1756788902953,0.3128,4385.4,4385.3,0.7129]
[1756788903149,0.50317224,4385.4,4385.3,4.1517]
[1756788903350,0.50317224,4385.4,4385.3,44.9517]
[1756788903351,0.19037224,4385.4,4385.3,44.9517]
[1756788903850,0.19037224,4385.4,4385.3,4.1517]
[1756788904251,0.19037224,4385.4,4385.3,44.9517]
[1756788905446,0.3128,4386.0,4385.9,0.4053]
[1756788905647,0.90427247,4386.0,4385.9,0.6363]
[1756788906250,0.90427247,4386.0,4385.9,0.4053]
[1756788906459,0.90427247,4386.0,4385.9,0.4294]
[1756788908164,0.90413303,4386.0,4385.9,0.4294]
[1756788909263,0.7138,4386.0,4385.9,0.4294]
[1756788909562,0.90409408,4386.0,4385.9,0.4294]
[1756788909961,0.70319408,4386.0,4385.9,0.9439]
[1756788910161,0.90409408,4386.0,4385.9,0.9439]
[1756788911461,0.703,4385.9,4385.8,0.7032]
[1756788911663,0.89329408,4385.9,4385.8,0.7032]
[1756788911860,0.89538645,4385.9,4385.8,0.7032]
[1756788914371,0.89538645,4385.9,4385.8,0.4127]
[1756788914770,0.89538645,4385.9,4385.3,40.8]
[1756788914969,0.703,4385.5,4385.4,0.6437]
[1756788915369,0.703,4385.5,4385.4,0.9342]
[1756788916176,0.5137,4385.5,4385.4,0.9342]
[1756788916372,0.703,4386.1,4386.0,0.2072]
[1756788916576,0.89527814,4386.1,4386.0,0.2072]
[1756788918879,0.89524968,4386.1,4386.0,0.2072]
[1756788921777,0.89524968,4386.1,4385.8,0.231]
[1756788921976,0.703,4385.9,4385.8,0.4382]
[1756788922280,0.3967,4385.4,4385.3,40.8]
[1756788922480,0.703,4385.4,4385.3,41.031]
[1756788922780,0.703,4385.4,4385.3,41.3215]
[1756788923183,0.5137,4385.4,4385.3,41.3215]
[1756788924079,0.3967,4386.0,4385.9,0.4127]
[1756788924379,0.61059218,4386.0,4385.9,0.7032]
[1756788924772,0.91689218,4386.0,4385.9,0.7032]
[1756788924975,0.91689218,4386.0,4385.9,0.4127]
[1756788926186,0.91689218,4386.0,4385.9,0.2072]
[1756788926481,1.90605206,4386.0,4385.9,0.231]
[1756788926683,2.02805206,4386.0,4385.9,0.231]
[1756788926882,1.72175206,4386.0,4385.3,41.0905]
[1756788927083,1.72175206,4386.0,4385.4,0.6437]
[1756788927084,0.2074,4385.5,4385.4,0.6437]
[1756788927377,0.5137,4385.5,4385.4,0.9342]
[1756788927680,0.72759218,4385.5,4385.4,0.9342]
[1756788927882,0.72759218,4385.5,4385.4,0.7032]
[1756788928082,0.72759218,4385.5,4385.4,0.9342]
[1756788929185,0.91689218,4385.5,4385.4,0.7032]
[1756788929383,0.91689218,4385.5,4385.4,0.9342]
[1756788929681,0.91727889,4385.5,4385.4,0.9342]
[1756788930081,0.91727889,4385.5,4385.4,0.7032]
[1756788930280,0.91728805,4385.5,4385.4,0.9342]
[1756788935489,0.91728805,4385.5,4385.4,0.7032]
[1756788935689,0.91728805,4385.5,4385.4,0.9342]
[1756788936390,0.91728805,4385.5,4385.4,0.7032]
[1756788936589,0.91728805,4385.5,4385.4,0.9342]
[1756788937090,0.91728805,4385.5,4385.4,0.7032]
[1756788937288,0.91728805,4385.5,4385.4,0.9342]
[1756788937790,0.91728805,4385.5,4385.4,0.6437]
[1756788939993,0.703,4385.5,4385.4,0.6437]
[1756788940292,0.93940625,4385.5,4385.4,0.6437]
[1756788940492,0.93940625,4385.5,4385.4,0.231]
[1756788940997,0.93940625,4385.5,4385.2,44.0078]
[1756788941296,0.94210625,4385.4,4385.3,0.4382]
[1756788941695,0.94210625,4385.4,4385.3,0.9387]
[1756788943598,0.7057,4385.4,4385.3,0.9387]
[1756788943794,0.95451563,4385.4,4385.3,0.9387]
[1756788945792,0.95451563,4385.4,4385.3,0.638]
[1756788947398,0.95451563,4385.4,4385.3,0.9387]
[1756788947992,0.74751563,4385.4,4385.3,0.9387]
[1756788948594,0.24881563,4385.4,4385.3,0.9387]
[1756788950103,0.54401563,4385.4,4385.3,0.9387]
[1756788950601,0.48869496,4385.4,4385.3,0.9387]
[1756788951195,0.19349386,4385.4,4385.3,0.9387]
[1756788952200,0.98915988,4386.7,4385.3,0.638]
[1756788952401,0.7057,4385.8,4385.7,3.9118]
[1756788952597,0.89915449,4385.8,4385.7,4.1428]
[1756788955001,0.89915449,4385.8,4385.2,44.0078]
[1756788955202,0.7057,4385.4,4385.3,0.231]
[1756788955397,0.89915449,4385.4,4385.3,0.4345]
[1756788955801,0.89915449,4385.4,4385.3,0.935]
[1756788956903,0.89915449,4385.4,4385.3,0.6343]
[1756788958402,0.89915449,4385.4,4385.3,0.935]
[1756788960004,1.69246615,4385.4,4385.3,0.2035]
[1756788960200,1.69246615,4385.4,4385.3,0.4345]
[1756788960700,0.89915449,4385.4,4385.3,0.935]
[1756788960902,0.2952,4384.7,4384.1,3.2078]
[1756788961107,1.49901166,4384.2,4384.1,3.2078]
[1756788961407,0.7057,4383.4,4383.3,0.2035]
[1756788961611,0.4105,4383.1,4383.0,3.2078]
[1756788961801,0.92364537,4383.1,4383.0,3.6423]
[1756788962000,0.92364537,4383.1,4383.0,44.4423]
[1756788962306,0.92295013,4383.1,4383.0,44.4423]
[1756788963398,0.4987,4383.1,4383.0,45.53631166]
[1756788963604,0.7057,4383.9,4383.4,0.3007]
[1756788963901,0.4105,4383.6,4383.5,0.4345]
[1756788964099,0.2952,4383.5,4383.4,0.99681166]
[1756788964298,0.21706061,4383.5,4383.4,1.72831166]
[1756788964499,0.71576061,4383.5,4383.4,0.935]
[1756788964701,0.92276061,4383.5,4383.4,0.935]
[1756788964894,0.62756061,4383.5,4383.0,44.3085]
[1756788965195,1.49901166,4383.2,4383.1,0.4345]
[1756788965398,1.71607227,4383.2,4383.1,0.4345]
[1756788965600,0.71576061,4383.2,4383.1,0.935]
[1756788966398,0.4987,4383.2,4383.1,0.935]
[1756788968999,0.7057,4383.2,4383.1,0.935]
[1756788969204,0.7057,4383.2,4383.1,0.6343]
[1756788969499,0.7057,4383.2,4383.1,0.4345]
[1756788970903,0.7057,4383.2,4383.1,0.231]
[1756788972110,0.7057,4383.2,4383.1,0.4345]
[1756788972304,3.3283,4384.0,4383.1,0.85585]
[1756788972607,0.70926379,4383.9,4383.8,0.7004]
[1756788972822,0.50986379,4383.9,4383.8,0.9314]
[1756788973309,0.2835,4384.2,4383.8,0.9314]
[1756788973512,0.50980607,4384.1,4384.0,0.7004]
[1756788973704,0.70920607,4384.1,4384.0,0.9314]
[1756788974010,0.70920607,4384.1,4384.0,41.7314]
[1756788974204,0.70918567,4384.1,4384.0,41.7314]
[1756788974805,0.22628567,4384.1,4384.0,44.9392]
[1756788975005,0.2835,4384.8,4384.7,0.1995]
[1756788975207,1.13625651,4384.8,4384.7,0.1995]
[1756788975399,1.70148817,4384.8,4384.7,0.1995]
[1756788976106,0.90817651,4384.8,4384.7,0.9314]
[1756788976510,1.70148817,4384.8,4384.7,0.6237]
[1756788977611,1.70148817,4384.8,4384.7,0.4305]
[1756788978308,1.70148817,4384.8,4384.7,0.231]
[1756788980312,0.90817651,4384.8,4384.7,0.4305]
[1756788981105,0.6819,4384.8,4384.7,0.4305]
[1756788981306,0.90840426,4384.8,4384.7,0.4305]
[1756788984614,0.90840426,4384.8,4384.7,0.231]
[1756788990615,1.70171592,4384.8,4384.7,0.231]
[1756788991521,1.70171592,4384.8,4384.7,0.4305]
[1756788991720,0.90840426,4384.8,4384.7,0.9314]
[1756788991918,0.90917768,4384.8,4384.7,0.6237]
[1756788992121,0.90917768,4384.8,4384.7,0.4305]
[1756788994315,0.90917768,4384.8,4384.7,0.1995]
[1756788994623,0.90917768,4384.8,4384.7,0.4305]
[1756788994920,0.2835,4384.7,4384.2,3.2078]
[1756788995115,0.90881166,4385.0,4384.3,0.4305]
[1756788995116,0.6819,4384.4,4384.3,0.4305]
[1756788995320,0.90917768,4384.4,4384.3,0.4305]
[1756788996122,0.90917768,4384.4,4384.3,0.9314]
[1756788996622,0.71017768,4384.4,4384.3,0.9314]
[1756788998224,0.71017768,4384.4,4384.3,0.7004]
[1756788998424,0.71017768,4384.4,4384.3,0.9314]
[1756788999727,0.90917768,4384.4,4384.3,0.9314]
[1756789002416,0.90926843,4384.4,4384.3,0.9314]
[1756789005827,0.90926843,4384.4,4384.3,0.6237]
[1756789006029,1.70258009,4384.4,4384.3,0.6237]
[1756789006224,1.70258009,4384.4,4383.4,0.231]
[1756789006225,0.2917,4383.7,4383.4,0.231]
[1756789006430,1.19271166,4383.5,4383.4,0.231]
[1756789006631,1.71178009,4383.5,4383.4,41.031]
[1756789007627,1.82508009,4383.5,4383.4,41.031]
[1756789009041,0.71646843,4383.5,4383.4,41.341]
[1756789013043,0.71622099,4383.5,4383.4,41.341]
[1756789015743,0.51882099,4383.5,4383.4,41.341]
[1756789017741,0.2917,4383.4,4382.8,0.31]
[1756789017948,0.3994,4382.7,4382.6,0.231]
[1756789018243,0.91822099,4382.7,4382.6,0.231]
[1756789020140,0.91802431,4382.7,4382.6,0.231]
[1756789020339,0.91802431,4382.7,4382.6,0.4359]
[1756789021434,0.91802431,4382.7,4382.6,0.6348]
[1756789021640,0.91802431,4382.7,4382.6,0.9448]
[1756789021941,0.51862431,4382.7,4382.6,0.9448]
[1756789022343,0.22692431,4382.7,4382.6,5.14259265]
[1756789022649,0.22677565,4382.7,4382.6,5.37076264]
[1756789022840,0.22677565,4382.7,4382.6,5.14259265]
[1756789023041,0.22676751,4382.7,4382.6,5.14259265]
[1756789023242,0.22674404,4382.7,4382.6,5.14259265]
[1756789024941,0.22674404,4382.7,4382.6,4.1526]